fUSD/lending_fUSD_20240925
["ID","MTS","AMOUNT","RATE_DAILY","PERIOD"]
[339111409,1727257843602,-580.83,0.00012888,2]
[339111410,1727257843613,-500.0,0.00012888,2]
[339111411,1727257843622,-500.0,0.00012888,2]
[339111412,1727257843632,-850.75,0.00012888,2]
[339111413,1727257843641,-500.53047391,0.00012888,2]
[339111414,1727257843650,-500.0,0.00012888,2]
[339111416,1727257843659,-500.0,0.00012888,2]
[339111417,1727257843669,-500.0,0.00012888,2]
[339111419,1727257843678,-500.0,0.00012888,2]
[339111421,1727257843688,-500.0,0.00012888,2]
[339111422,1727257843699,-500.97552235,0.00012888,2]
[339111423,1727257843708,-500.0,0.00012888,2]
[339111424,1727257843718,-500.0,0.00012888,2]
[339111425,1727257843730,-500.0,0.00012888,2]
[339111426,1727257843739,-500.0,0.00012888,2]
[339111427,1727257843749,-500.0,0.00012888,2]
[339111428,1727257843758,-500.0,0.00012888,2]
[339111429,1727257843768,-500.0,0.00012888,2]
[339111430,1727257843777,-500.0,0.00012888,2]
[339111431,1727257843787,-500.0,0.00012888,2]
[339111432,1727257843796,-500.0,0.00012888,2]
[339111433,1727257843806,-401.77013843,0.00012888,2]
[339111434,1727257843818,-500.0,0.00012888,2]
[339111435,1727257843827,-500.73416367,0.00012888,2]
[339111436,1727257843837,-500.0,0.00012888,2]
[339111437,1727257843846,-500.0,0.00012888,2]
[339111438,1727257843855,-500.0,0.00012888,2]
[339111439,1727257843866,-500.0,0.00012888,2]
[339111440,1727257843875,-500.0,0.00012888,2]
[339111441,1727257843885,-502.40463635,0.00012888,2]
[339111442,1727257843895,-500.0,0.00012888,2]
[339111443,1727257843904,-500.0,0.00012888,2]
[339111444,1727257843913,-500.0,0.00012888,2]
[339111445,1727257843923,-500.0,0.00012888,2]
[339111446,1727257843932,-500.0,0.00012888,2]
[339111447,1727257843946,-608.38210722,0.00012888,2]
[339111448,1727257843955,-663.32,0.00012888,2]
[339111449,1727257843965,-231.93726755,0.00012888,2]
[339111450,1727257843975,-515.45465843,0.00012888,2]
[339111451,1727257843984,-500.0,0.00012888,2]
[339111452,1727257843994,-500.0,0.00012888,2]
[339111453,1727257844004,-500.0,0.00012888,2]
[339111454,1727257844013,-500.0,0.00012888,2]
[339111455,1727257844023,-500.0,0.00012888,2]
[339111456,1727257844034,-502.80149423,0.00012888,2]
[339111457,1727257844043,-500.0,0.00012888,2]
[339111458,1727257844053,-500.0,0.00012888,2]
[339111459,1727257844063,-500.0,0.00012888,2]
[339111460,1727257844073,-503.26826438,0.00012888,2]
[339111461,1727257844083,-169.32,0.00012888,2]
[339111462,1727257844093,-500.0,0.00012888,2]
[339111463,1727257844103,-500.0,0.00012888,2]
[339111464,1727257844112,-500.0,0.00012888,2]
[339111465,1727257844122,-402.40625136,0.00012888,2]
[339111466,1727257844132,-263.56,0.00012888,2]
[339111467,1727257844142,-500.0,0.00012888,2]
[339111468,1727257844152,-220.01900822,0.00012888,2]
[339111469,1727257844161,-584.36361539,0.00012888,2]
[339111470,1727257844171,-500.0,0.00012888,2]
[339111471,1727257844181,-500.0,0.00012888,2]
[339111472,1727257844190,-500.0,0.00012888,2]
[339111473,1727257844200,-500.0,0.00012888,2]
[339111474,1727257844209,-500.0,0.00012888,2]
[339111475,1727257844219,-500.0,0.00012888,2]
[339111476,1727257844229,-500.0,0.00012888,2]
[339111477,1727257844238,-500.0,0.00012888,2]
[339111478,1727257844247,-500.0,0.00012888,2]
[339111479,1727257844257,-500.0,0.00012888,2]
[339111480,1727257844266,-500.0,0.00012888,2]
[339111481,1727257844276,-500.0,0.00012888,2]
[339111482,1727257844286,-500.0,0.00012888,2]
[339111483,1727257844295,-500.0,0.00012888,2]
[339111484,1727257844305,-500.0,0.00012889,2]
[339111485,1727257844315,-212.35,0.00012889,2]
[339111486,1727257844324,-900.54,0.00012889,2]
[339111487,1727257844334,-500.0,0.00012889,2]
[339111488,1727257844344,-153.37250753,0.00012889,2]
[339111489,1727257844353,-500.0,0.00012889,2]
[339111490,1727257844363,-218.89,0.00012889,2]
[339111491,1727257844373,-500.0,0.00012889,2]
[339111492,1727257844382,-500.0,0.00012889,2]
[339111493,1727257844391,-500.0,0.00012889,2]
[339111494,1727257844400,-500.0,0.00012889,2]
[339111495,1727257844410,-500.0,0.00012889,2]
[339111496,1727257844419,-585.15,0.00012889,2]
[339111497,1727257844428,-808.1,0.00012889,2]
[339111498,1727257844438,-500.0,0.00012889,2]
[339111499,1727257844447,-425.224495,0.00012889,2]
[339111500,1727257844456,-500.0,0.00012889,2]
[339111501,1727257844465,-500.0,0.00012889,2]
[339111502,1727257844475,-500.0,0.00012889,2]
[339111503,1727257844485,-500.0,0.00012889,2]
[339111504,1727257844494,-500.0,0.00012889,2]
[339111505,1727257844504,-500.0,0.00012889,2]
[339111506,1727257844514,-500.0,0.00012889,2]
[339111507,1727257844523,-229.62597515,0.00012889,2]
[339111508,1727257844532,-532.12506405,0.00012889,2]
[339111509,1727257844541,-500.0,0.00012889,2]
[339111510,1727257844550,-446.04458614,0.00012889,2]
[339111511,1727257844560,-593.42,0.00012889,2]
[339111512,1727257844570,-500.0,0.00012889,2]
[339111513,1727257844579,-264.18698224,0.00012889,2]
[339111514,1727257844588,-500.0,0.00012889,2]
[339111515,1727257844598,-496.67631355,0.00012889,2]
[339111516,1727257844607,-542.26875131,0.00012889,2]
[339111517,1727257844617,-629.43848288,0.00012889,2]
[339111518,1727257844626,-305.94,0.00012889,2]
[339111519,1727257844635,-500.0,0.00012889,2]
[339111520,1727257844645,-500.0,0.00012889,2]
[339111521,1727257844654,-500.0,0.00012889,2]
[339111522,1727257844664,-293.47,0.00012889,2]
[339111523,1727257844673,-219.35073357,0.00012889,2]
[339111524,1727257844684,-578.61,0.00012889,2]
[339111525,1727257844694,-168.69131125,0.00012889,2]
[339111526,1727257844703,-500.0,0.00012889,2]
[339111527,1727257844713,-298.23338794,0.00012889,2]
[339111528,1727257844722,-509.63287626,0.00012889,2]
[339111529,1727257844732,-517.38524226,0.00012889,2]
[339111530,1727257844741,-238.24293909,0.00012889,2]
[339111531,1727257844751,-500.0,0.00012889,2]
[339111532,1727257844760,-500.0,0.00012889,2]
[339111533,1727257844770,-308.3600779,0.00012889,2]
[339111534,1727257844779,-220.31229226,0.00012889,2]
[339111535,1727257844788,-500.0,0.00012889,2]
[339111536,1727257844798,-500.0,0.00012889,2]
[339111537,1727257844807,-501.08570324,0.00012889,2]
[339111538,1727257844817,-500.0,0.00012889,2]
[339111539,1727257844826,-500.62830109,0.00012889,2]
[339111540,1727257844836,-500.0,0.00012889,2]
[339111541,1727257844844,-500.88781775,0.00012889,2]
[339111542,1727257844853,-500.0,0.00012889,2]
[339111543,1727257844862,-502.5973521,0.00012889,2]
[339111544,1727257844871,-500.0,0.00012889,2]
[339111545,1727257844881,-426.27096738,0.00012889,2]
[339111546,1727257844890,-459.38,0.00012889,2]
[339111547,1727257844899,-502.29394242,0.00012889,2]
[339111548,1727257844910,-500.0,0.00012889,2]
[339111549,1727257844920,-502.17614128,0.00012889,2]
[339111550,1727257844930,-501.80729479,0.00012889,2]
[339111551,1727257844940,-500.93627612,0.00012889,2]
[339111552,1727257844951,-500.0,0.00012889,2]
[339111553,1727257844962,-500.0,0.00012889,2]
[339111554,1727257844972,-500.0,0.00012889,2]
[339111555,1727257844982,-500.0,0.00012889,2]
[339111556,1727257844991,-500.0,0.00012889,2]
[339111557,1727257845001,-500.0,0.00012889,2]
[339111558,1727257845010,-500.0,0.00012889,2]
[339111559,1727257845020,-616.88,0.00012889,2]
[339111560,1727257845030,-500.0,0.00012889,2]
[339111561,1727257845039,-500.0,0.00012889,2]
[339111562,1727257845048,-530.31,0.00012889,2]
[339111563,1727257845058,-545.04,0.00012889,2]
[339111564,1727257845067,-512.39396738,0.00012889,2]
[339111565,1727257845077,-500.0,0.00012889,2]
[339111566,1727257845087,-500.0,0.00012889,2]
[339111567,1727257845096,-500.0,0.00012889,2]
[339111568,1727257845105,-501.21649763,0.00012889,2]
[339111569,1727257845115,-500.0,0.00012889,2]
[339111570,1727257845124,-649.41,0.00012889,2]
[339111571,1727257845133,-546.73,0.00012889,2]
[339111572,1727257845143,-449.42,0.00012889,2]
[339111573,1727257845152,-199.3,0.00012889,2]
[339111574,1727257845161,-196.69,0.00012889,2]
[339111575,1727257845171,-500.0,0.00012889,2]
[339111576,1727257845180,-155.06215588,0.00012889,2]
[339111577,1727257845189,-500.0,0.00012889,2]
[339111578,1727257845199,-578.78,0.00012889,2]
[339111579,1727257845208,-29999.99,0.00012893,2]
[339111580,1727257845217,-19999.99,0.00012893,2]
[339111581,1727257845226,-8722.48,0.00012893,2]
[339111582,1727257845236,-420.0411875,0.00012894,2]
[339111583,1727257845246,-3510.8640908,0.00012894,2]
[339111584,1727257845255,-500.0,0.00012895,2]
[339111585,1727257845264,-500.0,0.00012895,2]
[339111586,1727257845273,-878.28,0.00012895,2]
[339111587,1727257845282,-500.0,0.00012895,2]
[339111588,1727257845293,-500.0,0.00012895,2]
[339111589,1727257845303,-500.0,0.00012896,2]
[339111590,1727257845317,-500.0,0.00012896,2]
[339111591,1727257845327,-500.0,0.00012896,2]
[339111592,1727257845336,-20000.0,0.00012896,2]
[339111593,1727257845345,-500.0,0.00012896,2]
[339111594,1727257845354,-651.69,0.00012896,2]
[339111595,1727257845364,-500.0,0.00012896,2]
[339111596,1727257845373,-500.0,0.00012896,2]
[339111597,1727257845382,-500.0,0.00012896,2]
[339111598,1727257845391,-500.0,0.00012896,2]
[339111599,1727257845401,-500.0,0.00012896,2]
[339111600,1727257845410,-500.0,0.00012896,2]
[339111601,1727257845418,-554.61,0.00012896,2]
[339111602,1727257845428,-500.0,0.00012896,2]
[339111603,1727257845437,-500.0,0.00012896,2]
[339111604,1727257845446,-500.0,0.00012896,2]
[339111605,1727257845456,-500.0,0.00012896,2]
[339111606,1727257845465,-714.28,0.00012896,2]
[339111607,1727257845474,-500.0,0.00012896,2]
[339111608,1727257845483,-500.0,0.00012896,2]
[339111609,1727257845493,-500.0,0.00012896,2]
[339111610,1727257845502,-606.59,0.00012896,2]
[339111611,1727257845511,-500.0,0.00012896,2]
[339111612,1727257845522,-500.0,0.00012896,2]
[339111613,1727257845532,-500.0,0.00012896,2]
[339111614,1727257845541,-500.0,0.00012896,2]
[339111615,1727257845551,-500.0,0.00012896,2]
[339111616,1727257845560,-500.0,0.00012896,2]
[339111617,1727257845569,-500.0,0.00012896,2]
[339111618,1727257845579,-500.0,0.00012896,2]
[339111619,1727257845590,-500.0,0.00012896,2]
[339111620,1727257845600,-500.0,0.00012896,2]
[339111621,1727257845610,-500.0,0.00012896,2]
[339111622,1727257845619,-500.0,0.00012896,2]
[339111623,1727257845628,-500.0,0.00012896,2]
[339111624,1727257845638,-500.0,0.00012896,2]
[339111625,1727257845649,-500.0,0.00012896,2]
[339111626,1727257845658,-500.0,0.00012896,2]
[339111627,1727257845668,-500.0,0.00012896,2]
[339111628,1727257845679,-500.0,0.00012896,2]
[339111629,1727257845688,-500.0,0.00012896,2]
[339111630,1727257845698,-500.0,0.00012896,2]
[339111631,1727257845707,-500.0,0.00012896,2]
[339111632,1727257845718,-500.0,0.00012896,2]
[339111633,1727257845729,-500.0,0.00012896,2]
[339111634,1727257845739,-500.0,0.00012896,2]
[339111635,1727257845751,-500.0,0.00012896,2]
[339111636,1727257845763,-500.0,0.00012896,2]
[339111637,1727257845772,-500.0,0.00012896,2]
[339111638,1727257845783,-500.0,0.00012896,2]
[339111639,1727257845792,-500.0,0.00012896,2]
[339111640,1727257845802,-500.0,0.00012896,2]
[339111641,1727257845812,-500.0,0.00012896,2]
[339111642,1727257845825,-500.0,0.00012896,2]
[339111643,1727257845834,-500.0,0.00012896,2]
[339111644,1727257845844,-677.91,0.00012896,2]
[339111645,1727257845853,-500.0,0.00012896,2]
[339111646,1727257845864,-500.0,0.00012896,2]
[339111647,1727257845874,-500.0,0.00012896,2]
[339111648,1727257845883,-500.0,0.00012896,2]
[339111649,1727257845894,-500.0,0.00012896,2]
[339111650,1727257845906,-500.0,0.00012896,2]
[339111651,1727257845916,-500.0,0.00012896,2]
[339111652,1727257845926,-500.0,0.00012896,2]
[339111653,1727257845936,-897.01,0.00012896,2]
[339111654,1727257845947,-500.0,0.00012896,2]
[339111655,1727257845957,-500.0,0.00012896,2]
[339111656,1727257845968,-500.0,0.00012896,2]
[339111657,1727257845977,-738.98,0.00012896,2]
[339111658,1727257845987,-421.6,0.00012896,2]
[339111659,1727257845996,-500.0,0.00012896,2]
[339111660,1727257846005,-500.0,0.00012896,2]
[339111661,1727257846014,-500.0,0.00012896,2]
[339111662,1727257846024,-500.0,0.00012896,2]
[339111663,1727257846033,-500.0,0.00012896,2]
[339111664,1727257846044,-500.0,0.00012896,2]
[339111665,1727257846053,-824.55,0.00012896,2]
[339111666,1727257846064,-500.0,0.00012896,2]
[339111667,1727257846074,-500.0,0.00012896,2]
[339111668,1727257846084,-702.88,0.00012896,2]
[339111669,1727257846093,-500.0,0.00012896,2]
[339111670,1727257846102,-500.0,0.00012896,2]
[339111671,1727257846111,-500.0,0.00012896,2]
[339111672,1727257846124,-500.0,0.00012896,2]
[339111673,1727257846135,-500.0,0.00012896,2]
[339111674,1727257846146,-500.0,0.00012896,2]
[339111675,1727257846155,-500.0,0.00012896,2]
[339111676,1727257846164,-500.0,0.00012896,2]
[339111677,1727257846174,-1000.0,0.00012896,2]
[339111678,1727257846184,-500.0,0.00012896,2]
[339111679,1727257846194,-500.0,0.00012896,2]
[339111680,1727257846203,-500.0,0.00012896,2]
[339111681,1727257846212,-500.0,0.00012896,2]
[339111682,1727257846221,-500.0,0.00012896,2]
[339111683,1727257846231,-500.0,0.00012896,2]
[339111684,1727257846239,-500.0,0.00012896,2]
[339111685,1727257846249,-625.64,0.00012896,2]
[339111686,1727257846258,-500.0,0.00012896,2]
[339111687,1727257846267,-500.0,0.00012896,2]
[339111688,1727257846277,-500.0,0.00012896,2]
[339111689,1727257846287,-500.0,0.00012896,2]
[339111690,1727257846296,-500.0,0.00012896,2]
[339111691,1727257846304,-568.19,0.00012896,2]
[339111692,1727257846313,-500.0,0.00012896,2]
[339111693,1727257846323,-500.0,0.00012896,2]
[339111694,1727257846332,-500.0,0.00012896,2]
[339111695,1727257846341,-514.08434201,0.00012896,2]
[339111696,1727257846350,-619.68226885,0.00012896,2]
[339111697,1727257846359,-500.0,0.00012896,2]
[339111698,1727257846369,-502.17907147,0.00012896,2]
[339111699,1727257846378,-520.12400318,0.00012896,2]
[339111700,1727257846388,-500.0,0.00012896,2]
[339111701,1727257846397,-500.0,0.00012896,2]
[339111702,1727257846406,-500.0,0.00012896,2]
[339111703,1727257846416,-500.0,0.00012896,2]
[339111704,1727257846424,-569.28131919,0.00012896,2]
[339111705,1727257846433,-506.42694706,0.00012896,2]
[339111706,1727257846443,-500.0,0.00012896,2]
[339111707,1727257846452,-500.0,0.00012896,2]
[339111708,1727257846463,-500.0,0.00012896,2]
[339111709,1727257846474,-827.25,0.00012896,2]
[339111710,1727257846485,-500.0,0.00012896,2]
[339111711,1727257846495,-517.49976795,0.00012896,2]
[339111712,1727257846506,-546.74848918,0.00012896,2]
[339111713,1727257846515,-1091.71,0.00012896,2]
[339111714,1727257846525,-1091.97,0.00012896,2]
[339111715,1727257846534,-502.69,0.00012896,2]
[339111716,1727257846543,-344.38400368,0.00012896,2]
[339111717,1727257846553,-500.0,0.00012896,2]
[339111718,1727257846569,-500.0,0.00012896,2]
[339111719,1727257846578,-544.71,0.00012896,2]
[339111720,1727257846588,-500.0,0.00012896,2]
[339111721,1727257846597,-1888.88,0.00012896,2]
[339111722,1727257846606,-500.0,0.00012896,2]
[339111723,1727257846616,-500.0,0.00012896,2]
[339111724,1727257846625,-1188.68,0.00012896,2]
[339111725,1727257846634,-500.0,0.00012896,2]
[339111726,1727257846645,-500.0,0.00012896,2]
[339111727,1727257846654,-512.78,0.00012896,2]
[339111728,1727257846808,-528.92058141,0.00012896,2]
[339111729,1727257846822,-500.0,0.00012896,2]
[339111730,1727257846832,-664.88,0.00012896,2]
[339111731,1727257846842,-500.0,0.00012896,2]
[339111732,1727257846852,-519.21475345,0.00012896,2]
[339111733,1727257846861,-500.0,0.00012896,2]
[339111734,1727257846871,-507.65863049,0.00012896,2]
[339111735,1727257846880,-500.0,0.00012896,2]
[339111736,1727257846890,-508.4612262,0.00012896,2]
[339111737,1727257846899,-519.48,0.00012896,2]
[339111738,1727257846908,-807.0,0.00012896,2]
[339111739,1727257846918,-559.33557323,0.00012896,2]
[339111740,1727257846927,-1909.45,0.00012896,2]
[339111741,1727257846937,-500.0,0.00012897,2]
[339111742,1727257846946,-500.0,0.00012897,2]
[339111743,1727257846956,-900.54,0.00012897,2]
[339111744,1727257846965,-500.0,0.00012897,2]
[339111745,1727257846974,-500.0,0.00012897,2]
[339111746,1727257846984,-337.56896669,0.00012897,2]
[339111747,1727257846993,-325.48521628,0.00012897,2]
[339111748,1727257847003,-263.77648202,0.00012897,2]
[339111749,1727257847012,-500.0,0.00012897,2]
[339111750,1727257847021,-500.0,0.00012897,2]
[339111751,1727257847030,-585.15,0.00012897,2]
[339111752,1727257847039,-808.1,0.00012897,2]
[339111753,1727257847049,-500.0,0.00012897,2]
[339111754,1727257847059,-500.0,0.00012897,2]
[339111755,1727257847069,-500.0,0.00012897,2]
[339111756,1727257847079,-486.59831024,0.00012897,2]
[339111757,1727257847088,-500.0,0.00012897,2]
[339111758,1727257847098,-406.78174727,0.00012897,2]
[339111759,1727257847108,-229.91893632,0.00012897,2]
[339111760,1727257847117,-500.0,0.00012897,2]
[339111761,1727257847126,-500.0,0.00012897,2]
[339111762,1727257847135,-234.93664644,0.00012897,2]
[339111763,1727257847145,-164.2,0.00012897,2]
[339111764,1727257847155,-500.0,0.00012897,2]
[339111765,1727257847164,-188.34,0.00012897,2]
[339111766,1727257847173,-500.0,0.00012897,2]
[339111767,1727257847183,-500.0,0.00012897,2]
[339111768,1727257847193,-500.0,0.00012897,2]
[339111769,1727257847203,-359.02,0.00012897,2]
[339111770,1727257847212,-589.07879378,0.00012897,2]
[339111771,1727257847221,-500.0,0.00012897,2]
[339111772,1727257847231,-646.56621116,0.00012897,2]
[339111773,1727257847240,-500.0,0.00012897,2]
[339111774,1727257847250,-500.0,0.00012897,2]
[339111775,1727257847259,-500.0,0.00012897,2]
[339111776,1727257847268,-500.0,0.00012897,2]
[339111777,1727257847277,-500.0,0.00012897,2]
[339111778,1727257847286,-500.0,0.00012897,2]
[339111779,1727257847296,-500.0,0.00012897,2]
[339111780,1727257847305,-500.0,0.00012897,2]
[339111781,1727257847315,-500.0,0.00012897,2]
[339111782,1727257847324,-616.88,0.00012897,2]
[339111783,1727257847334,-500.0,0.00012897,2]
[339111784,1727257847343,-500.0,0.00012897,2]
[339111785,1727257847352,-500.0,0.00012897,2]
[339111786,1727257847362,-500.0,0.00012897,2]
[339111787,1727257847371,-500.0,0.00012897,2]
[339111788,1727257847380,-500.0,0.00012897,2]
[339111789,1727257847390,-2923.51,0.00012897,2]
[339111790,1727257847399,-503.41607558,0.00012897,2]
[339111791,1727257847409,-530.31,0.00012897,2]
[339111792,1727257847418,-500.0,0.00012897,2]
[339111793,1727257847428,-500.0,0.00012897,2]
[339111794,1727257847437,-545.04,0.00012897,2]
[339111795,1727257847446,-500.0,0.00012897,2]
[339111796,1727257847455,-505.87130242,0.00012897,2]
[339111797,1727257847464,-503.95105987,0.00012897,2]
[339111798,1727257847474,-500.0,0.00012897,2]
[339111799,1727257847483,-504.81145938,0.00012897,2]
[339111800,1727257847493,-500.0,0.00012897,2]
[339111801,1727257847502,-500.0,0.00012897,2]
[339111802,1727257847511,-502.85730225,0.00012897,2]
[339111803,1727257847521,-502.25238392,0.00012897,2]
[339111804,1727257847530,-501.73907534,0.00012897,2]
[339111805,1727257847539,-501.35599522,0.00012897,2]
[339111806,1727257847549,-500.0,0.00012897,2]
[339111807,1727257847559,-542.9249389,0.00012897,2]
[339111808,1727257847569,-500.0,0.00012897,2]
[339111809,1727257847578,-501.72429375,0.00012897,2]
[339111810,1727257847588,-503.30644027,0.00012897,2]
[339111811,1727257847598,-500.0,0.00012897,2]
[339111812,1727257847608,-502.056661,0.00012897,2]
[339111813,1727257847617,-503.59260715,0.00012897,2]
[339111814,1727257847627,-503.67013276,0.00012897,2]
[339111815,1727257847637,-500.0,0.00012897,2]
[339111816,1727257847646,-502.48412514,0.00012897,2]
[339111817,1727257847655,-500.0,0.00012897,2]
[339111818,1727257847666,-500.0,0.00012897,2]
[339111819,1727257847676,-504.78216409,0.00012897,2]
[339111820,1727257847687,-2055.6,0.00012897,2]
[339111821,1727257847697,-509.38355943,0.00012897,2]
[339111822,1727257847706,-501.84416266,0.00012897,2]
[339111823,1727257847717,-501.85928298,0.00012897,2]
[339111824,1727257847726,-498.3565398,0.00012897,2]
[339111825,1727257847736,-501.8045773,0.00012897,2]
[339111826,1727257847746,-501.49297416,0.00012897,2]
[339111827,1727257847755,-503.11431207,0.00012897,2]
[339111828,1727257847765,-482.31098145,0.00012897,2]
[339111829,1727257847774,-500.0,0.00012897,2]
[339111830,1727257847784,-501.69385734,0.00012897,2]
[339111831,1727257847793,-641.34353605,0.00012897,2]
[339111832,1727257847803,-501.93774592,0.00012897,2]
[339111833,1727257847815,-503.36280191,0.00012897,2]
[339111834,1727257847828,-500.0,0.00012897,2]
[339111835,1727257847838,-522.53,0.00012897,2]
[339111836,1727257847848,-498.73715884,0.00012897,2]
[339111837,1727257847858,-500.0,0.00012897,2]
[339111838,1727257847868,-500.0,0.00012897,2]
[339111839,1727257847878,-502.22597144,0.00012897,2]
[339111840,1727257847888,-591.0001505,0.00012897,2]
[339111841,1727257847897,-502.57557006,0.00012897,2]
[339111842,1727257847906,-500.0,0.00012897,2]
[339111843,1727257847916,-500.0,0.00012897,2]
[339111844,1727257847924,-500.0,0.00012897,2]
[339111845,1727257847934,-254.86,0.00012897,2]
[339111846,1727257847943,-503.58791464,0.00012897,2]
[339111847,1727257847953,-503.17676233,0.00012897,2]
[339111848,1727257847963,-500.0,0.00012897,2]
[339111849,1727257847973,-502.90256105,0.00012897,2]
[339111850,1727257847982,-500.0,0.00012897,2]
[339111851,1727257847992,-500.0,0.00012897,2]
[339111852,1727257848001,-580.85861354,0.00012897,2]
[339111853,1727257848011,-385.25215191,0.00012897,2]
[339111854,1727257848020,-502.85511718,0.00012897,2]
[339111855,1727257848029,-504.70444944,0.00012897,2]
[339111856,1727257848039,-500.0,0.00012897,2]
[339111857,1727257848048,-438.33523393,0.00012897,2]
[339111858,1727257848057,-504.85009961,0.00012897,2]
[339111859,1727257848066,-502.8604276,0.00012897,2]
[339111860,1727257848076,-555.93118128,0.00012897,2]
[339111861,1727257848085,-502.51955838,0.00012897,2]
[339111862,1727257848094,-504.38827042,0.00012897,2]
[339111863,1727257848103,-502.47536783,0.00012897,2]
[339111864,1727257848113,-500.0,0.00012897,2]
[339111865,1727257848122,-500.0,0.00012897,2]
[339111866,1727257848131,-503.23486865,0.00012897,2]
[339111867,1727257848140,-500.0,0.00012897,2]
[339111868,1727257848150,-577.32524918,0.00012897,2]
[339111869,1727257848159,-502.65044615,0.00012897,2]
[339111870,1727257848168,-500.0,0.00012897,2]
[339111871,1727257848177,-511.50951372,0.00012897,2]
[339111872,1727257848186,-500.0,0.00012897,2]
[339111873,1727257848196,-500.0,0.00012897,2]
[339111874,1727257848205,-500.0,0.00012897,2]
[339111875,1727257848215,-501.88359388,0.00012897,2]
[339111876,1727257848224,-500.0,0.00012897,2]
[339111877,1727257848233,-500.0,0.00012897,2]
[339111878,1727257848242,-502.98423716,0.00012897,2]
[339111879,1727257848251,-502.3693897,0.00012897,2]
[339111880,1727257848260,-258.10742282,0.00012897,2]
[339111881,1727257848269,-500.0,0.00012897,2]
[339111882,1727257848278,-500.0,0.00012897,2]
[339111883,1727257848287,-304.33383392,0.00012897,2]
[339111884,1727257848296,-500.0,0.00012897,2]
[339111885,1727257848304,-500.0,0.00012897,2]
[339111886,1727257848315,-500.0,0.00012897,2]
[339111887,1727257848324,-500.0,0.00012897,2]
[339111888,1727257848333,-504.84951055,0.00012897,2]
[339111889,1727257848342,-580.83,0.00012897,2]
[339111890,1727257848351,-508.46,0.00012897,2]
[339111891,1727257848359,-850.75,0.00012897,2]
[339111892,1727257848369,-500.0,0.00012897,2]
[339111893,1727257848378,-433.33545842,0.00012897,2]
[339111894,1727257848387,-500.0,0.00012897,2]
[339111895,1727257848396,-433.16192647,0.00012897,2]
[339111896,1727257848405,-500.0,0.00012897,2]
[339111897,1727257848414,-500.0,0.00012897,2]
[339111898,1727257848423,-501.23685986,0.00012897,2]
[339111899,1727257848433,-608.34012087,0.00012897,2]
[339111900,1727257848442,-500.0,0.00012897,2]
[339111901,1727257848451,-606.6,0.00012897,2]
[339111902,1727257848460,-502.36036927,0.00012897,2]
[339111903,1727257848470,-501.91522366,0.00012897,2]
[339111904,1727257848479,-209.80233421,0.00012897,2]
[339111905,1727257848488,-502.1833924,0.00012897,2]
[339111906,1727257848497,-505.91619539,0.00012897,2]
[339111907,1727257848506,-500.0,0.00012897,2]
[339111908,1727257848515,-501.26475204,0.00012897,2]
[339111909,1727257848524,-504.19324229,0.00012897,2]
[339111910,1727257848533,-502.52889848,0.00012897,2]
[339111911,1727257848542,-500.0,0.00012897,2]